[Event "Titled Tuesday Blitz November 22 Early 2022"]
[White "Winterberg, Lukas"]
[Black "Salman, Pavel"]
[WhiteFideId "24622702"]
[BlackFideId "24153753"]
[WhiteElo "2349"]
[BlackElo "2187"]
[Result "1-0"]
[Round "03"]
[TimeControl "180+1"]
[Date "2022.11.23"]
[WhiteClock "0:00:29"]
[BlackClock "0:00:02"]

1. d4 {[%clk 0:03:00]}  Nf6 {[%clk 0:02:59]} 2. Nf3 {[%clk 0:03:01]}  g6 {[%clk 0:02:57]} 3. c4 {[%clk 0:03:01]}  d5 {[%clk 0:02:57]} 4. Nc3 {[%clk 0:03:01]}  Bg7 {[%clk 0:02:56]} 5. cxd5 {[%clk 0:02:59]}  Nxd5 {[%clk 0:02:57]} 6. e4 {[%clk 0:02:59]}  Nxc3 {[%clk 0:02:57]} 7. bxc3 {[%clk 0:03:00]}  O-O {[%clk 0:02:57]} 8. Be2 {[%clk 0:03:01]}  c5 {[%clk 0:02:57]} 9. O-O {[%clk 0:03:01]}  Nc6 {[%clk 0:02:54]} 10. Be3 {[%clk 0:03:01]}  cxd4 {[%clk 0:02:46]} 11. cxd4 {[%clk 0:03:02]}  Bg4 {[%clk 0:02:46]} 12. d5 {[%clk 0:03:02]}  Bxf3 {[%clk 0:02:42]} 13. Bxf3 {[%clk 0:02:59]}  Ne5 {[%clk 0:02:42]} 14. Be2 {[%clk 0:02:58]}  Rc8 {[%clk 0:02:37]} 15. Bd4 {[%clk 0:02:55]}  Qa5 {[%clk 0:02:14]} 16. Rb1 {[%clk 0:02:48]}  b6 {[%clk 0:02:05]} 17. f4 {[%clk 0:02:43]}  Nd7 {[%clk 0:01:53]} 18. Bxg7 {[%clk 0:02:43]}  Kxg7 {[%clk 0:01:54]} 19. Qd4+ {[%clk 0:02:36]}  Kg8 {[%clk 0:01:54]} 20. Kh1 {[%clk 0:02:28]}  Rc2 {[%clk 0:01:44]} 21. Bb5 {[%clk 0:02:21]}  Nc5 {[%clk 0:01:33]} 22. a4 {[%clk 0:02:14]}  a6 {[%clk 0:01:28]} 23. Bc6 {[%clk 0:02:14]}  Rd2 {[%clk 0:01:21]} 24. Qc4 {[%clk 0:02:13]}  Rd3 {[%clk 0:00:49]} 25. e5 {[%clk 0:01:54]}  Qd2 {[%clk 0:00:43]} 26. Qb4 {[%clk 0:01:24]}  Qe2 {[%clk 0:00:27]} 27. Rbe1 {[%clk 0:01:07]}  Qa2 {[%clk 0:00:26]} 28. Qxb6 {[%clk 0:01:06]}  Rd2 {[%clk 0:00:21]} 29. Qxc5 {[%clk 0:00:55]}  Rxg2 {[%clk 0:00:21]} 30. d6 {[%clk 0:00:55]}  Rxh2+ {[%clk 0:00:20]} 31. Kg1 {[%clk 0:00:55]}  exd6 {[%clk 0:00:20]} 32. exd6 {[%clk 0:00:54]}  Rh5 {[%clk 0:00:20]} 33. Qf2 {[%clk 0:00:53]}  Qc4 {[%clk 0:00:20]} 34. Bg2 {[%clk 0:00:51]}  Qxa4 {[%clk 0:00:18]} 35. Rd1 {[%clk 0:00:49]}  Qd7 {[%clk 0:00:18]} 36. Qg3 {[%clk 0:00:49]}  Re8 {[%clk 0:00:17]} 37. Rfe1 {[%clk 0:00:47]}  Rxe1+ {[%clk 0:00:17]} 38. Qxe1 {[%clk 0:00:48]}  Kg7 {[%clk 0:00:17]} 39. Qe3 {[%clk 0:00:46]}  Rb5 {[%clk 0:00:15]} 40. Qc3+ {[%clk 0:00:44]}  Kg8 {[%clk 0:00:15]} 41. Qf6 {[%clk 0:00:42]}  Qg4 {[%clk 0:00:14]} 42. Re1 {[%clk 0:00:38]}  Rb8 {[%clk 0:00:13]} 43. Qg5 {[%clk 0:00:34]}  Qd7 {[%clk 0:00:12]} 44. Qe7 {[%clk 0:00:34]}  Rd8 {[%clk 0:00:08]} 45. Qxd7 {[%clk 0:00:28]}  Rxd7 {[%clk 0:00:09]} 46. Rd1 {[%clk 0:00:28]}  Kg7 {[%clk 0:00:09]} 47. Bc6 {[%clk 0:00:28]}  Rd8 {[%clk 0:00:10]} 48. d7 {[%clk 0:00:29]}  Kf6 {[%clk 0:00:10]} 49. Ra1 {[%clk 0:00:29]}  Ke7 {[%clk 0:00:10]} 50. Rxa6 {[%clk 0:00:29]}  f6 {[%clk 0:00:10]} 51. Ba4 {[%clk 0:00:29]}  g5 {[%clk 0:00:11]} 52. f5 {[%clk 0:00:29]}  h5 {[%clk 0:00:11]} 53. Re6+ {[%clk 0:00:29]}  Kf7 {[%clk 0:00:08]} 54. Re8 {[%clk 0:00:30]}  Rxd7 {[%clk 0:00:02]} 55. Bxd7 {[%clk 0:00:29]} 1-0


[Site "https://www.chess.com"]

[Event "Titled Tuesday Blitz November 22 Early 2022"]
[White "Yurasova, Daria"]
[Black "Adithya A Chullikkad"]
[WhiteFideId "34146919"]
[BlackFideId "45078734"]
[WhiteElo "2097"]
[BlackElo "2106"]
[Result "1-0"]
[Round "03"]
[TimeControl "180+1"]
[Date "2022.11.23"]
[WhiteClock "0:00:30"]
[BlackClock "0:00:30"]

1. d4 {[%clk 0:02:59]}  d5 {[%clk 0:02:56]} 2. Nf3 {[%clk 0:02:57]}  c5 {[%clk 0:02:55]} 3. dxc5 {[%clk 0:02:56]}  e6 {[%clk 0:02:54]} 4. e3 {[%clk 0:02:56]}  Bxc5 {[%clk 0:02:54]} 5. Be2 {[%clk 0:02:56]}  Nf6 {[%clk 0:02:54]} 6. O-O {[%clk 0:02:55]}  O-O {[%clk 0:02:54]} 7. a3 {[%clk 0:02:56]}  Nc6 {[%clk 0:02:55]} 8. b4 {[%clk 0:02:56]}  Bd6 {[%clk 0:02:55]} 9. Bb2 {[%clk 0:02:56]}  a6 {[%clk 0:02:52]} 10. Nbd2 {[%clk 0:02:57]}  Bd7 {[%clk 0:02:49]} 11. c4 {[%clk 0:02:56]}  Rc8 {[%clk 0:02:45]} 12. Rc1 {[%clk 0:02:55]}  Bb8 {[%clk 0:02:42]} 13. Qb3 {[%clk 0:02:55]}  b5 {[%clk 0:02:40]} 14. cxb5 {[%clk 0:02:54]}  axb5 {[%clk 0:02:39]} 15. Bxb5 {[%clk 0:02:43]}  Ne4 {[%clk 0:02:21]} 16. Rfd1 {[%clk 0:02:05]}  Nxd2 {[%clk 0:02:11]} 17. Rxd2 {[%clk 0:02:05]}  Ne5 {[%clk 0:02:03]} 18. Nxe5 {[%clk 0:01:56]}  Bxb5 {[%clk 0:02:00]} 19. Rxc8 {[%clk 0:01:48]}  Qxc8 {[%clk 0:01:59]} 20. Nf3 {[%clk 0:01:48]}  Bc4 {[%clk 0:01:56]} 21. Qc3 {[%clk 0:01:46]}  f6 {[%clk 0:01:53]} 22. Qd4 {[%clk 0:01:24]}  Qa6 {[%clk 0:01:45]} 23. h3 {[%clk 0:01:16]}  Rc8 {[%clk 0:01:31]} 24. Qg4 {[%clk 0:01:16]}  e5 {[%clk 0:01:04]} 25. Nh4 {[%clk 0:00:45]}  Rc7 {[%clk 0:00:47]} 26. Nf5 {[%clk 0:00:39]}  Bb5 {[%clk 0:00:40]} 27. Rxd5 {[%clk 0:00:34]}  Bd7 {[%clk 0:00:39]} 28. Nh6+ {[%clk 0:00:31]}  Kf8 {[%clk 0:00:34]} 29. Rxd7 {[%clk 0:00:30]}  Qc6 {[%clk 0:00:30]} 30. Qxg7+ {[%clk 0:00:30]}  Ke8 {[%clk 0:00:30]} 31. Qe7# {[%clk 0:00:30]} 1-0


[Site "https://www.chess.com"]

[Event "Titled Tuesday Blitz November 22 Early 2022"]
[White "Zemlyanskii, Ivan"]
[Black "Wagner, Dennis"]
[WhiteFideId "24249971"]
[BlackFideId "24650684"]
[WhiteElo "2107"]
[BlackElo "2470"]
[Result "1-0"]
[Round "03"]
[TimeControl "180+1"]
[Date "2022.11.22"]
[WhiteClock "0:00:17"]
[BlackClock "0:00:01"]

1. d4 {[%clk 0:03:00]}  Nf6 {[%clk 0:03:00]} 2. c4 {[%clk 0:03:01]}  e6 {[%clk 0:03:00]} 3. Nf3 {[%clk 0:03:02]}  d5 {[%clk 0:03:00]} 4. g3 {[%clk 0:03:03]}  Bb4+ {[%clk 0:03:00]} 5. Bd2 {[%clk 0:03:03]}  a5 {[%clk 0:03:00]} 6. Bg2 {[%clk 0:03:01]}  O-O {[%clk 0:03:00]} 7. Qc2 {[%clk 0:02:57]}  c6 {[%clk 0:03:00]} 8. O-O {[%clk 0:02:57]}  h6 {[%clk 0:03:00]} 9. Bf4 {[%clk 0:02:51]}  Be7 {[%clk 0:02:50]} 10. Nbd2 {[%clk 0:02:46]}  Nh5 {[%clk 0:02:47]} 11. Be3 {[%clk 0:02:41]}  b6 {[%clk 0:02:46]} 12. Rfd1 {[%clk 0:02:36]}  Bb7 {[%clk 0:02:46]} 13. Ne5 {[%clk 0:02:30]}  Nd7 {[%clk 0:02:43]} 14. Ndf3 {[%clk 0:02:26]}  Nhf6 {[%clk 0:02:32]} 15. Bf4 {[%clk 0:02:21]}  Rc8 {[%clk 0:02:28]} 16. Nxd7 {[%clk 0:02:11]}  Nxd7 {[%clk 0:02:28]} 17. e4 {[%clk 0:02:04]}  c5 {[%clk 0:02:19]} 18. exd5 {[%clk 0:02:02]}  exd5 {[%clk 0:02:19]} 19. Qf5 {[%clk 0:01:47]}  cxd4 {[%clk 0:01:45]} 20. cxd5 {[%clk 0:01:40]}  g6 {[%clk 0:01:01]} 21. Qh3 {[%clk 0:01:22]}  Bxd5 {[%clk 0:01:01]} 22. Nxd4 {[%clk 0:01:16]}  Bxg2 {[%clk 0:00:59]} 23. Kxg2 {[%clk 0:01:16]}  h5 {[%clk 0:00:56]} 24. Nb5 {[%clk 0:01:10]}  Rc5 {[%clk 0:00:55]} 25. Qxd7 {[%clk 0:01:03]}  Qa8+ {[%clk 0:00:46]} 26. Kg1 {[%clk 0:01:02]}  Bf6 {[%clk 0:00:46]} 27. Nc7 {[%clk 0:00:56]}  Qf3 {[%clk 0:00:42]} 28. Nd5 {[%clk 0:00:53]}  Bxb2 {[%clk 0:00:39]} 29. Rab1 {[%clk 0:00:53]}  Kg7 {[%clk 0:00:36]} 30. Nxb6 {[%clk 0:00:49]}  Rc2 {[%clk 0:00:30]} 31. Rf1 {[%clk 0:00:40]}  Bf6 {[%clk 0:00:25]} 32. Qd1 {[%clk 0:00:36]}  Qc6 {[%clk 0:00:24]} 33. Qd5 {[%clk 0:00:28]}  Qxd5 {[%clk 0:00:14]} 34. Nxd5 {[%clk 0:00:29]}  Rxa2 {[%clk 0:00:15]} 35. Nxf6 {[%clk 0:00:30]}  Kxf6 {[%clk 0:00:16]} 36. Rb6+ {[%clk 0:00:30]}  Kf5 {[%clk 0:00:16]} 37. Re1 {[%clk 0:00:29]}  h4 {[%clk 0:00:13]} 38. Rb5+ {[%clk 0:00:27]}  Kg4 {[%clk 0:00:14]} 39. Kg2 {[%clk 0:00:21]}  h3+ {[%clk 0:00:14]} 40. Kg1 {[%clk 0:00:22]}  Re8 {[%clk 0:00:13]} 41. f3+ {[%clk 0:00:19]}  Kxf3 {[%clk 0:00:10]} 42. Rb3+ {[%clk 0:00:17]}  Kg4 {[%clk 0:00:09]} 43. Rxe8 {[%clk 0:00:18]}  a4 {[%clk 0:00:07]} 44. Rb1 {[%clk 0:00:18]}  a3 {[%clk 0:00:06]} 45. Ra8 {[%clk 0:00:18]}  Rg2+ {[%clk 0:00:05]} 46. Kh1 {[%clk 0:00:18]}  a2 {[%clk 0:00:05]} 47. Ra1 {[%clk 0:00:19]}  g5 {[%clk 0:00:05]} 48. R8xa2 {[%clk 0:00:18]}  gxf4 {[%clk 0:00:01]} 49. Rxg2 {[%clk 0:00:18]}  f3 {[%clk 0:00:01]} 50. Rf2 {[%clk 0:00:17]} 1-0


[Site "https://www.chess.com"]

[Event "Titled Tuesday Blitz November 22 Early 2022"]
[White "Agasarov, Benik"]
[Black "Balabayeva, Xeniya"]
[WhiteFideId "13314823"]
[BlackFideId "13719688"]
[WhiteElo "2178"]
[BlackElo "2041"]
[Result "0-1"]
[Round "04"]
[TimeControl "180+1"]
[Date "2022.11.23"]
[WhiteClock "0:00:05"]
[BlackClock "0:00:03"]

1. e4 {[%clk 0:03:00]}  e5 {[%clk 0:02:58]} 2. Nf3 {[%clk 0:03:00]}  Nf6 {[%clk 0:02:58]} 3. Nc3 {[%clk 0:02:54]}  Nc6 {[%clk 0:02:55]} 4. h3 {[%clk 0:02:54]}  a6 {[%clk 0:02:45]} 5. d4 {[%clk 0:02:42]}  exd4 {[%clk 0:02:36]} 6. Nxd4 {[%clk 0:02:42]}  Bb4 {[%clk 0:02:35]} 7. Nxc6 {[%clk 0:02:40]}  bxc6 {[%clk 0:02:31]} 8. Bd3 {[%clk 0:02:39]}  h6 {[%clk 0:02:25]} 9. O-O {[%clk 0:02:37]}  d6 {[%clk 0:02:22]} 10. Qf3 {[%clk 0:02:31]}  O-O {[%clk 0:02:16]} 11. Rd1 {[%clk 0:02:28]}  Qe7 {[%clk 0:02:11]} 12. Bd2 {[%clk 0:02:27]}  Bc5 {[%clk 0:02:05]} 13. Be3 {[%clk 0:02:14]}  Bxe3 {[%clk 0:02:02]} 14. Qxe3 {[%clk 0:02:14]}  Bb7 {[%clk 0:02:00]} 15. Re1 {[%clk 0:02:13]}  Rfe8 {[%clk 0:01:53]} 16. Rad1 {[%clk 0:02:06]}  Rad8 {[%clk 0:01:47]} 17. Qa7 {[%clk 0:01:57]}  Rb8 {[%clk 0:01:37]} 18. Qe3 {[%clk 0:01:42]}  c5 {[%clk 0:01:33]} 19. b3 {[%clk 0:01:40]}  Rbd8 {[%clk 0:01:28]} 20. Qg3 {[%clk 0:01:16]}  Nh5 {[%clk 0:01:16]} 21. Qf3 {[%clk 0:01:13]}  Qe5 {[%clk 0:01:14]} 22. Bc4 {[%clk 0:01:02]}  Nf6 {[%clk 0:01:05]} 23. Nd5 {[%clk 0:00:49]}  Nxd5 {[%clk 0:00:41]} 24. Bxd5 {[%clk 0:00:46]}  Bxd5 {[%clk 0:00:41]} 25. Rxd5 {[%clk 0:00:45]}  Qb2 {[%clk 0:00:30]} 26. Qd3 {[%clk 0:00:33]}  Qxa2 {[%clk 0:00:27]} 27. Qc3 {[%clk 0:00:28]}  Qa3 {[%clk 0:00:23]} 28. Ra1 {[%clk 0:00:25]}  Qb4 {[%clk 0:00:23]} 29. Qxb4 {[%clk 0:00:23]}  cxb4 {[%clk 0:00:23]} 30. f3 {[%clk 0:00:24]}  c6 {[%clk 0:00:18]} 31. Rda5 {[%clk 0:00:23]}  d5 {[%clk 0:00:18]} 32. exd5 {[%clk 0:00:13]}  cxd5 {[%clk 0:00:19]} 33. Kf2 {[%clk 0:00:13]}  Rc8 {[%clk 0:00:19]} 34. R1a2 {[%clk 0:00:12]}  Re6 {[%clk 0:00:19]} 35. Rxd5 {[%clk 0:00:11]}  Rec6 {[%clk 0:00:17]} 36. Rd2 {[%clk 0:00:12]}  Kf8 {[%clk 0:00:16]} 37. g4 {[%clk 0:00:12]}  Rc3 {[%clk 0:00:15]} 38. Kg3 {[%clk 0:00:09]}  R8c6 {[%clk 0:00:16]} 39. Re2 {[%clk 0:00:07]}  Rf6 {[%clk 0:00:15]} 40. Rf2 {[%clk 0:00:05]}  g5 {[%clk 0:00:15]} 41. Ra4 {[%clk 0:00:05]}  Rb6 {[%clk 0:00:14]} 42. h4 {[%clk 0:00:05]}  Kg7 {[%clk 0:00:14]} 43. hxg5 {[%clk 0:00:06]}  hxg5 {[%clk 0:00:15]} 44. Ra5 {[%clk 0:00:07]}  Kg6 {[%clk 0:00:15]} 45. Rd2 {[%clk 0:00:07]}  Rf6 {[%clk 0:00:15]} 46. Re2 {[%clk 0:00:08]}  Rfxf3+ {[%clk 0:00:15]} 47. Kg2 {[%clk 0:00:09]}  Rf4 {[%clk 0:00:14]} 48. Rxa6+ {[%clk 0:00:08]}  f6 {[%clk 0:00:14]} 49. Rf2 {[%clk 0:00:07]}  Rxg4+ {[%clk 0:00:14]} 50. Kf1 {[%clk 0:00:07]}  Rf4 {[%clk 0:00:14]} 51. Rxf4 {[%clk 0:00:07]}  gxf4 {[%clk 0:00:14]} 52. Rb6 {[%clk 0:00:08]}  Rxc2 {[%clk 0:00:14]} 53. Rxb4 {[%clk 0:00:09]}  Kf5 {[%clk 0:00:15]} 54. Rb6 {[%clk 0:00:09]}  Ke5 {[%clk 0:00:06]} 55. b4 {[%clk 0:00:09]}  f5 {[%clk 0:00:06]} 56. Rb8 {[%clk 0:00:09]}  Ke4 {[%clk 0:00:06]} 57. Rh8 {[%clk 0:00:08]}  Ke3 {[%clk 0:00:05]} 58. Re8+ {[%clk 0:00:03]}  Kf3 {[%clk 0:00:05]} 59. Kg1 {[%clk 0:00:04]}  Rc1+ {[%clk 0:00:05]} 60. Kh2 {[%clk 0:00:04]}  Kf2 {[%clk 0:00:05]} 61. b5 {[%clk 0:00:05]}  f3 {[%clk 0:00:03]} 62. b6 {[%clk 0:00:05]}  Rc6 {[%clk 0:00:03]} 63. b7 {[%clk 0:00:05]}  Rh6# {[%clk 0:00:03]} 0-1


[Site "https://www.chess.com"]

[Event "Titled Tuesday Blitz November 22 Early 2022"]
[White "Aldokhin, Ivan"]
[Black "Zierk, Steven"]
[WhiteFideId "24115720"]
[BlackFideId "2034255"]
[WhiteElo "2313"]
[BlackElo "2494"]
[Result "0-1"]
[Round "04"]
[TimeControl "180+1"]
[Date "2022.11.23"]
[WhiteClock "0:00:05"]
[BlackClock "0:00:13"]

1. e4 {[%clk 0:03:00]}  e6 {[%clk 0:02:58]} 2. d4 {[%clk 0:03:00]}  d5 {[%clk 0:02:58]} 3. Nc3 {[%clk 0:03:01]}  Bb4 {[%clk 0:02:57]} 4. Ne2 {[%clk 0:02:59]}  dxe4 {[%clk 0:02:56]} 5. a3 {[%clk 0:02:58]}  Be7 {[%clk 0:02:54]} 6. Nxe4 {[%clk 0:02:58]}  Nf6 {[%clk 0:02:54]} 7. Nxf6+ {[%clk 0:02:46]}  Bxf6 {[%clk 0:02:55]} 8. g3 {[%clk 0:02:47]}  Qd5 {[%clk 0:02:48]} 9. Rg1 {[%clk 0:02:46]}  O-O {[%clk 0:02:45]} 10. Bg2 {[%clk 0:02:46]}  Qb5 {[%clk 0:02:38]} 11. Nc3 {[%clk 0:02:40]}  Qb6 {[%clk 0:02:36]} 12. Be3 {[%clk 0:01:59]}  Qxb2 {[%clk 0:02:24]} 13. Ne4 {[%clk 0:01:41]}  Be7 {[%clk 0:02:20]} 14. g4 {[%clk 0:01:28]}  Nc6 {[%clk 0:02:11]} 15. g5 {[%clk 0:01:20]}  e5 {[%clk 0:01:27]} 16. Nf6+ {[%clk 0:00:50]}  Kh8 {[%clk 0:00:52]} 17. Be4 {[%clk 0:00:28]}  g6 {[%clk 0:00:45]} 18. Nxh7 {[%clk 0:00:24]}  exd4 {[%clk 0:00:34]} 19. Bf4 {[%clk 0:00:17]}  Re8 {[%clk 0:00:29]} 20. Rb1 {[%clk 0:00:08]}  Qc3+ {[%clk 0:00:25]} 21. Bd2 {[%clk 0:00:08]}  Qh3 {[%clk 0:00:21]} 22. Rg3 {[%clk 0:00:08]}  Qxh7 {[%clk 0:00:19]} 23. Qf3 {[%clk 0:00:07]}  Bd6 {[%clk 0:00:17]} 24. Kf1 {[%clk 0:00:04]}  Bxg3 {[%clk 0:00:15]} 25. hxg3 {[%clk 0:00:05]}  Ne5 {[%clk 0:00:14]} 26. Qf6+ {[%clk 0:00:03]}  Qg7 {[%clk 0:00:14]} 27. Qf4 {[%clk 0:00:03]}  Bf5 {[%clk 0:00:14]} 28. Kg2 {[%clk 0:00:03]}  Bxe4+ {[%clk 0:00:14]} 29. Qxe4 {[%clk 0:00:04]}  Nc4 {[%clk 0:00:14]} 30. Rh1+ {[%clk 0:00:04]}  Kg8 {[%clk 0:00:14]} 31. Qd3 {[%clk 0:00:05]}  Nxd2 {[%clk 0:00:14]} 32. Qxd2 {[%clk 0:00:05]}  Re4 {[%clk 0:00:13]} 33. Qd3 {[%clk 0:00:05]}  Rae8 {[%clk 0:00:13]} 0-1


[Site "https://www.chess.com"]

[Event "Titled Tuesday Blitz November 22 Early 2022"]
[White "Avazkhonov, Alikhon"]
[Black "Chirilov, James A"]
[WhiteFideId "14208504"]
[BlackFideId "30976677"]
[WhiteElo "1739"]
[BlackElo "1790"]
[Result "1-0"]
[Round "04"]
[TimeControl "180+1"]
[Date "2022.11.23"]
[WhiteClock "0:00:30"]
[BlackClock "0:00:01"]

1. d4 {[%clk 0:03:00]}  Nf6 {[%clk 0:03:00]} 2. c4 {[%clk 0:03:01]}  g6 {[%clk 0:02:58]} 3. Nc3 {[%clk 0:03:02]}  Bg7 {[%clk 0:02:58]} 4. e4 {[%clk 0:03:02]}  O-O {[%clk 0:02:59]} 5. f3 {[%clk 0:03:02]}  d6 {[%clk 0:02:56]} 6. Be3 {[%clk 0:03:03]}  c5 {[%clk 0:02:57]} 7. dxc5 {[%clk 0:03:02]}  dxc5 {[%clk 0:02:53]} 8. Qxd8 {[%clk 0:03:03]}  Rxd8 {[%clk 0:02:54]} 9. Bxc5 {[%clk 0:03:04]}  e6 {[%clk 0:02:38]} 10. Nge2 {[%clk 0:02:52]}  b6 {[%clk 0:02:37]} 11. Ba3 {[%clk 0:02:40]}  Ba6 {[%clk 0:02:33]} 12. Nb5 {[%clk 0:02:29]}  Ne8 {[%clk 0:02:16]} 13. Nec3 {[%clk 0:02:28]}  Nd7 {[%clk 0:02:14]} 14. Rd1 {[%clk 0:02:19]}  Ne5 {[%clk 0:02:12]} 15. Be2 {[%clk 0:02:15]}  Bxb5 {[%clk 0:01:49]} 16. Nxb5 {[%clk 0:02:10]}  Rxd1+ {[%clk 0:01:48]} 17. Kxd1 {[%clk 0:02:11]}  a6 {[%clk 0:01:43]} 18. Nc3 {[%clk 0:02:05]}  Rc8 {[%clk 0:01:43]} 19. Kc2 {[%clk 0:01:36]}  Nxc4 {[%clk 0:01:03]} 20. Bxc4 {[%clk 0:01:37]}  Rxc4 {[%clk 0:01:04]} 21. Rd1 {[%clk 0:01:35]}  Bf6 {[%clk 0:01:02]} 22. e5 {[%clk 0:01:27]}  Bg5 {[%clk 0:00:52]} 23. Kb3 {[%clk 0:01:13]}  b5 {[%clk 0:00:22]} 24. Ne4 {[%clk 0:01:07]}  f6 {[%clk 0:00:09]} 25. Rd8 {[%clk 0:00:48]}  Kf7 {[%clk 0:00:09]} 26. Rd7+ {[%clk 0:00:45]}  Kg8 {[%clk 0:00:09]} 27. Re7 {[%clk 0:00:35]}  Nc7 {[%clk 0:00:03]} 28. exf6 {[%clk 0:00:31]}  Nd5 {[%clk 0:00:03]} 29. Re8+ {[%clk 0:00:29]}  Kf7 {[%clk 0:00:01]} 30. Rf8# {[%clk 0:00:30]} 1-0


[Site "https://www.chess.com"]

[Event "Titled Tuesday Blitz November 22 Early 2022"]
[White "Bazeev, German"]
[Black "Bilych, Olexiy"]
[WhiteFideId "24119350"]
[BlackFideId "14156504"]
[WhiteElo "2493"]
[BlackElo "2320"]
[Result "1/2-1/2"]
[Round "04"]
[TimeControl "180+1"]
[Date "2022.11.22"]
[WhiteClock "0:00:09"]
[BlackClock "0:00:04"]

1. d4 {[%clk 0:02:56]}  Nf6 {[%clk 0:02:54]} 2. Nf3 {[%clk 0:02:56]}  d5 {[%clk 0:02:53]} 3. c4 {[%clk 0:02:56]}  e6 {[%clk 0:02:53]} 4. g3 {[%clk 0:02:57]}  dxc4 {[%clk 0:02:52]} 5. Bg2 {[%clk 0:02:57]}  Bb4+ {[%clk 0:02:52]} 6. Bd2 {[%clk 0:02:55]}  a5 {[%clk 0:02:52]} 7. a3 {[%clk 0:02:54]}  Bxd2+ {[%clk 0:02:50]} 8. Nbxd2 {[%clk 0:02:54]}  b5 {[%clk 0:02:50]} 9. a4 {[%clk 0:02:52]}  c6 {[%clk 0:02:50]} 10. O-O {[%clk 0:02:38]}  O-O {[%clk 0:02:50]} 11. Qc2 {[%clk 0:02:39]}  Na6 {[%clk 0:02:45]} 12. b3 {[%clk 0:02:28]}  Nb4 {[%clk 0:02:44]} 13. Qc1 {[%clk 0:02:27]}  cxb3 {[%clk 0:02:28]} 14. Nxb3 {[%clk 0:02:28]}  bxa4 {[%clk 0:02:20]} 15. Nc5 {[%clk 0:02:25]}  Ba6 {[%clk 0:02:15]} 16. Nxa6 {[%clk 0:02:24]}  Rxa6 {[%clk 0:02:16]} 17. Rxa4 {[%clk 0:02:18]}  Qd5 {[%clk 0:02:12]} 18. e3 {[%clk 0:02:08]}  Qb5 {[%clk 0:01:58]} 19. Ra3 {[%clk 0:02:00]}  Rc8 {[%clk 0:01:50]} 20. Qb1 {[%clk 0:01:44]}  c5 {[%clk 0:01:44]} 21. Rc1 {[%clk 0:01:39]}  c4 {[%clk 0:01:40]} 22. Ne5 {[%clk 0:01:39]}  Ra7 {[%clk 0:01:19]} 23. Bf1 {[%clk 0:01:36]}  Rac7 {[%clk 0:01:19]} 24. Qa1 {[%clk 0:01:01]}  Ne4 {[%clk 0:00:49]} 25. Rxa5 {[%clk 0:00:59]}  Qe8 {[%clk 0:00:48]} 26. Rxc4 {[%clk 0:00:51]}  Rxc4 {[%clk 0:00:44]} 27. Nxc4 {[%clk 0:00:52]}  Qd8 {[%clk 0:00:37]} 28. Bg2 {[%clk 0:00:46]}  Nc3 {[%clk 0:00:37]} 29. Ra8 {[%clk 0:00:33]}  Nbd5 {[%clk 0:00:30]} 30. Rxc8 {[%clk 0:00:31]}  Qxc8 {[%clk 0:00:31]} 31. Bxd5 {[%clk 0:00:28]}  Nxd5 {[%clk 0:00:30]} 32. Nd6 {[%clk 0:00:27]}  Qb8 {[%clk 0:00:30]} 33. Ne4 {[%clk 0:00:26]}  h6 {[%clk 0:00:30]} 34. Qc1 {[%clk 0:00:23]}  Qb7 {[%clk 0:00:28]} 35. Nd6 {[%clk 0:00:21]}  Qb3 {[%clk 0:00:24]} 36. Qc8+ {[%clk 0:00:18]}  Kh7 {[%clk 0:00:24]} 37. Nxf7 {[%clk 0:00:19]}  Qd1+ {[%clk 0:00:20]} 38. Kg2 {[%clk 0:00:19]}  Nxe3+ {[%clk 0:00:21]} 39. fxe3 {[%clk 0:00:16]}  Qe2+ {[%clk 0:00:21]} 40. Kg1 {[%clk 0:00:13]}  Qxe3+ {[%clk 0:00:20]} 41. Kg2 {[%clk 0:00:13]}  Qe2+ {[%clk 0:00:20]} 42. Kg1 {[%clk 0:00:14]}  Qe1+ {[%clk 0:00:18]} 43. Kg2 {[%clk 0:00:14]}  Qe2+ {[%clk 0:00:19]} 44. Kg1 {[%clk 0:00:14]}  Qe1+ {[%clk 0:00:18]} 45. Kg2 {[%clk 0:00:15]}  Qe4+ {[%clk 0:00:17]} 46. Kg1 {[%clk 0:00:15]}  Qxd4+ {[%clk 0:00:18]} 47. Kg2 {[%clk 0:00:12]}  Qe4+ {[%clk 0:00:16]} 48. Kg1 {[%clk 0:00:12]}  Qe3+ {[%clk 0:00:16]} 49. Kg2 {[%clk 0:00:12]}  Qe2+ {[%clk 0:00:16]} 50. Kg1 {[%clk 0:00:13]}  Qd1+ {[%clk 0:00:16]} 51. Kg2 {[%clk 0:00:12]}  Qd5+ {[%clk 0:00:16]} 52. Kg1 {[%clk 0:00:10]}  Qd4+ {[%clk 0:00:16]} 53. Kg2 {[%clk 0:00:11]}  Qd2+ {[%clk 0:00:15]} 54. Kg1 {[%clk 0:00:11]}  Qe1+ {[%clk 0:00:16]} 55. Kg2 {[%clk 0:00:11]}  Qe2+ {[%clk 0:00:16]} 56. Kg1 {[%clk 0:00:10]}  Qe3+ {[%clk 0:00:16]} 57. Kg2 {[%clk 0:00:10]}  Qd2+ {[%clk 0:00:11]} 58. Kg1 {[%clk 0:00:09]}  Qd1+ {[%clk 0:00:11]} 59. Kg2 {[%clk 0:00:09]}  Qd5+ {[%clk 0:00:11]} 60. Kg1 {[%clk 0:00:09]}  Qd4+ {[%clk 0:00:04]} 1/2-1/2


[Site "https://www.chess.com"]